Cogmind - Beta 13 X1 @@@ ROGUE MODE // 2023.06.21 @ 23:31:40 Player: Cracklepappy Result: Destroyed by Autobeam Turret with Autobeam Performance ------------- Evolutions (0) 0 Regions Visited (2) 400 Robots Destroyed (27) 135 Value Destroyed (592) 592 Prototype IDs (0) 0 Alien Tech Used (0) 0 Bonus (0) 0 TOTAL SCORE: 1127 Bonus ------- None Cogmind --------- Core Integrity 0/250 Matter 173/300 Energy 246/250 System Corruption 0% Temperature Cool (8) Movement Treading (160) Location -10/Subcaves Parts ------- > --- POWER (1) -------- Ion Engine > --- PROPULSION (2) --- Light Treads Light Treads > --- UTILITY (2) ------ Scrap Shield > --- WEAPON (2) ------- Light Assault Rifle Battle Cannon > --- INVENTORY (5) ---- Light Treads Subdweller Laser Assault Rifle Grenade Launcher Mining Laser Peak State ------------ > --- POWER ------------ Ion Engine > --- PROPULSION ------- Light Treads Light Treads > --- UTILITY ---------- Scrap Shield > --- WEAPON ----------- Subdweller Laser Mining Laser > --- INVENTORY -------- Light Treads Assault Rifle Assault Rifle Light Assault Rifle Grenade Launcher [Rating: 10] Favorites ----------- Power Ion Engine Engine Ion Engine Propulsion Light Treads Treads Light Treads Wheel Wheel Utility Heat Sink Device Heat Sink Storage High-capacity Storage Unit Protection Scrap Shield Weapon Assault Rifle Energy Gun Subdweller Laser Ballistic Gun Assault Rifle Ballistic Cannon Battle Cannon Launcher Grenade Launcher Special Weapon Mining Laser Build | -11 -10 -10 ------- Run | Jun Mat Sub Slots Evolved . | . . . Power . | . . . Propulsion . | . . . Utility . | . . . Weapon . | . . . Parts Attached 33 | 7 15 11 Power 3 | 1 1 1 Engine 3 | 1 1 1 Core . | . . . Reactor . | . . . Propulsion 10 | 2 7 1 Treads 9 | 1 7 1 Leg . | . . . Wheel 1 | 1 . . Hover . | . . . Flight . | . . . Utility 5 | 1 3 1 Device 1 | . 1 . Storage 3 | 1 2 . Processor . | . . . Hackware . | . . . Protection 1 | . . 1 Artifact . | . . . Weapon 15 | 3 4 8 Energy Gun 3 | 2 . 1 Energy Cannon . | . . . Ballistic Gun 8 | 1 3 4 Ballistic Cannon 1 | . . 1 Launcher 2 | . 1 1 Special Weapon 1 | . . 1 Impact Weapon . | . . . Slashing Weapon . | . . . Piercing Weapon . | . . . Special Melee Weapon . | . . . Unidentified Prototypes . | . . . Parts Lost 4 | . 1 3 Power 1 | . . 1 Propulsion 2 | . 1 1 Utility . | . . . Weapon 1 | . . 1 Highest Loss Streak 2 | . 1 2 To Critical Strikes 1 | . . 1 Average Slot Usage (%) 92 | . 94 85 Engine 12 | . 13 6 Treads 25 | . 24 28 Wheel 2 | . 2 . Device 9 | . 9 8 Storage 12 | . 14 8 Protection 1 | . . 5 Energy Gun 2 | . . 8 Ballistic Gun 22 | . 27 9 Special Weapon 1 | . . 5 Naked Turns . | . . . Heaviest Build 50 | 14 50 50 Greatest Support 40 | 20 40 40 Greatest Overweight (x) 1 | . 1 1 Average Overweight (x) . | . . . Largest Inventory Capacity 20 | 8 20 20 Average Capacity 13 | 6 14 13 Most Carried 15 | 8 12 15 Average Carried 9 | 4 10 9 Final Capacity 20 | 8 20 5 Final Carried 11 | 8 11 5 Class Distribution -------------------- 60% | Scavenger-Mutant 39% | Mutant Dominant Class ---------------- Scavenger-Mutant | -10/Materials Scavenger-Mutant | -10/Subcaves Resources | -11 -10 -10 ----------- Run | Jun Mat Sub Matter Collected 872 | 294 496 82 Remotely . | . . . Salvage Created 840 | 122 631 87 Parts 66 | 7 53 6 Haulers Intercepted 2 | . 2 . Recyclers Shooed 1 | . 1 . Parts Field Recycled . | . . . Retrieved Matter . | . . . Parts Self-Destructed 8 | . . 8 Prevented . | . . . Kills | -11 -10 -10 ------- Run | Jun Mat Sub Combat Hostiles Destroyed 19 | . 15 4 Guns 16 | . 15 1 AOE 3 | . . 3 Classes Destroyed 7 | 2 4 1 Tunneler 3 | 3 . . Hauler 2 | . 2 . Recycler 2 | 1 1 . Watcher 1 | . 1 . Swarmer 6 | . 6 . Grunt 9 | . 9 . Subdweller 4 | . . 4 Best Kill Streak 4 | 3 4 2 Combat Bots Only 3 | . 3 2 Max Kills in Single Turn 2 | 1 2 1 Gunslinging 1 | . 1 . Exploded 1 | . . 1 Melee . | . . . Uniques/NPCs Destroyed . | . . . Combat | -11 -10 -10 -------- Run | Jun Mat Sub Damage Taken 954 | . 655 299 Core 253 | . 174 79 Absorbed by Shields . | . . . Core Remaining (%) 100 | 100 . . Volleys Fired 90 | 8 69 13 Largest 2 | 2 2 2 Hottest 100 | 70 70 100 Shots Fired 168 | 16 138 14 Gun 156 | 16 138 2 Cannon . | . . . Launcher 10 | . . 10 Special 2 | . . 2 Kinetic 139 | 8 129 2 Thermal 19 | 8 9 2 Explosive 10 | . . 10 Electromagnetic . | . . . Robot Hit Streak 19 | 5 19 4 Robot Miss Streak 3 | 3 3 . Penetration Max . | . . . Secondary Targets 1 | . 1 . Max Gunslinging Chain 1 | . 1 . Shots Hit Robots 100 | 10 87 3 Core Hits 50 | 5 37 8 Critical Kills . | . . . Critical Parts Destroyed . | . . . Critical Strikes 1 | . 1 . Burn 1 | . 1 . Melee Attacks . | . . . Impact . | . . . Slashing . | . . . Piercing . | . . . Sneak Attacks . | . . . Combat Hostiles . | . . . Follow-up Attacks . | . . . Damage Inflicted 1728 | 121 988 619 Guns 1110 | 121 968 21 Cannons . | . . . Explosions 598 | . . 598 Melee . | . . . Ramming 20 | . 20 . Kinetic 1013 | 60 932 21 Thermal 97 | 61 36 . Explosive 598 | . . 598 Electromagnetic . | . . . Impact . | . . . Slashing . | . . . Piercing . | . . . Highest Corruption . | . . . Average Corruption . | . . . Corruption Purged . | . . . Corruption Blocked . | . . . Overload Shots . | . . . Overflow Damage . | . . . Projectiles . | . . . Explosions . | . . . Melee . | . . . Knockbacks . | . . . Impact . | . . . Kinetic . | . . . Secondary . | . . . Self-Inflicted Damage 15 | . . 15 Shots 2 | . . 2 Rammed 6 | . 6 . Targets Rammed 7 | . 7 . Kicked . | . . . Crushed 1 | . 1 . Highest Temperature 81 | 27 81 . Average Temperature 22 | 12 26 . Received Heat Transfer 336 | . 294 42 Siege Activations . | . . . Robots Corrupted . | . . . Combat Hostiles . | . . . Parts Fried . | . . . Impact Corruptions . | . . . Robots Melted . | . . . Combat Hostiles . | . . . Parts Melted . | . . . Heat Transferred 370 | 185 185 . Parts Sabotaged . | . . . Parts Stolen . | . . . Parts Stripped . | . . . Power Chain Reactions . | . . . Missiles Intercepted . | . . . Alert | -11 -10 -10 ------- Run | Jun Mat Sub Peak Influence 258 | 20 258 . Initial 13 | . 13 . Average 115 | 6 124 . Maximum Alert Level 1 | . 1 . Low Security (%) 88 | 100 87 . Level 1 11 | . 12 . Level 2 . | . . . Level 3 . | . . . Level 4 . | . . . Level 5 . | . . . High Security . | . . . Max Security . | . . . Squads Dispatched 3 | . 3 . Investigation 2 | . 2 . Extermination . | . . . Reinforcement 1 | . 1 . Assault . | . . . Garrison . | . . . Intercept . | . . . Searches Triggered . | . . . Construction Impeded . | . . . Haulers Reinforced . | . . . Active Scanning Responses . | . . . Cargo Convoy Interrupts . | . . . Stealth | -11 -10 -10 --------- Run | Jun Mat Sub Distress Signals 4 | . 4 . Communications Jammed . | . . . Distress Signals . | . . . Times Spotted 41 | . 37 4 Peak Tracking Total 5 | . 5 2 Tactical Retreats 1 | . 1 . Traps | -11 -10 -10 ------- Run | Jun Mat Sub Traps Triggered 6 | . 5 1 Indirectly . | . . . Trap Hack Attempts . | . . . Triggered . | . . . Disarmed . | . . . Reprogrammed . | . . . Reused . | . . . Traps Extracted . | . . . Installed . | . . . Triggered . | . . . Machines | -11 -10 -10 ---------- Run | Jun Mat Sub Machines Disabled . | . . . Max in Single Turn . | . . . Machines Repaired . | . . . Machines Sabotaged . | . . . Overloaded Fab Kills . | . . . Hacking | -11 -10 -10 --------- Run | Jun Mat Sub Machines Accessed 2 | . 2 . Terminals 2 | . 2 . Fabricators . | . . . Repair Stations . | . . . Recycling Units . | . . . Scanalyzers . | . . . Garrison Access . | . . . Total Hacks 6 | . 6 . Successful 3 | . 3 . Failed 3 | . 3 . Catastrophic 2 | . 2 . Database Lockouts . | . . . Manual 5 | . 5 . Terminals 6 | . 6 . Fabricators . | . . . Repair Stations . | . . . Recycling Units . | . . . Scanalyzers . | . . . Garrison Access . | . . . Terminal Hacks 3 | . 3 . Part Schematic 2 | . 2 . Hauler Manifests 1 | . 1 . Fabricator Hacks . | . . . Repair Station Hacks . | . . . Recycling Unit Hacks . | . . . Scanalyzer . | . . . Garrison Access Hacks . | . . . Unauthorized Hacks . | . . . Terminals . | . . . Fabricators . | . . . Repair Stations . | . . . Recycling Units . | . . . Scanalyzers . | . . . Garrison Access . | . . . Data Cores Recovered . | . . . Used . | . . . Hacking Detections 1 | . 1 . Full Trace Events 1 | . 1 . Feedback Events . | . . . Feedback Blocked . | . . . Robot Schematics Acquired . | . . . Robots Built . | . . . Authchips . | . . . Time . | . . . Total Robot Build Rating . | . . . Part Schematics Acquired 2 | . 2 . Parts Built . | . . . Authchips . | . . . Time . | . . . Total Part Build Rating . | . . . Parts Repaired . | . . . Time . | . . . Parts Recycled . | . . . Recycled Matter . | . . . Retrieved Matter . | . . . Retrieved Components . | . . . Parts Scanalyzed . | . . . Part Schematics Acquired . | . . . Parts Damaged . | . . . Bothacking | -11 -10 -10 ------------ Run | Jun Mat Sub Used RIF Installer . | . . . Robots Hacked . | . . . Non-combat . | . . . Combat . | . . . Robot Hacks Applied . | . . . Relay Couplers Released . | . . . Fabnet Peak Effective % . | . . . Robots Rewired . | . . . Allies Hacked . | . . . Hacks Repelled . | . . . Allies | -11 -10 -10 -------- Run | Jun Mat Sub Total Allies . | . . . Largest Group . | . . . Highest-Rated Group . | . . . Highest-Rated Ally . | . . . Total Orders . | . . . Ally Attacks . | . . . Total Damage . | . . . Kills . | . . . Allies Corrupted . | . . . Allies Melted . | . . . Intel | -11 -10 -10 ------- Run | Jun Mat Sub Robot Analysis Total . | . . . Derelict Logs Recovered . | . . . Drone Launches . | . . . Drone Recoveries . | . . . Exploration | -11 -10 -10 ------------- Run | Jun Mat Sub Turns Passed 2347 | 136 1642 569 Spaces Moved 869 | 65 551 253 Core 5 | 5 . . Treads 859 | 55 551 253 Legs . | . . . Wheels 5 | 5 . . Hover . | . . . Flight . | . . . Fastest Speed 50 | 50 160 160 Average Speed 195 | 145 200 197 Slowest Speed 240 | 160 240 240 Overloaded Moves . | . . . Propulsion Burnouts . | . . . Robots Hopped . | . . . Cave-ins Triggered . | . . . Exploration Rate (%) 40 | 4 92 26 Regions Visited 2 Branch Regions 1 Pre-discovered Areas . | . . . Known Exits Taken . | . . . Unknown Exits Taken 2 | 1 1 . Scrap Searched . | . . . Spaces Dug 3 | . . 3 Terrain Destroyed 51 | . . 51 Melee . | . . . Projectile . | . . . AOE 51 | . . 51 Terrain Rammed . | . . . Walls Destroyed . | . . . Machines Disabled . | . . . Actions | -11 -10 -10 --------- Run | Jun Mat Sub Total 1348 | 88 957 303 Wait 304 | . 292 12 Move 867 | 64 550 253 Hop . | . . . Pick Up 29 | 9 12 8 Fast Attach 19 | 5 11 3 Attach 4 | 1 1 2 Detach . | . . . Swap 10 | 1 3 6 Drop 18 | . 12 6 Fire 90 | 8 69 13 Melee . | . . . Ram . | . . . Kick . | . . . Crush 7 | . 7 . Escape Stasis . | . . . Rewire . | . . . Trap . | . . . Miscellaneous . | . . . Route ------- -11/Junkyard -10/Materials (discovered 4 exits: [*Mat x2] / [*Min] / [*Sub]) -10/Subcaves (discovered 1 exit: [*Mat]) History --------- Turn | Location | Event 13 | -11/Junkyard | Discovered new exit (range 15) 137 | -11/Junkyard | Entered Materials 305 | -10/Materials | Build established: Mutant 491 | -10/Materials | Discovered new exit (range 8) 1015 | -10/Materials | Build established: Scavenger-Mutant 1057 | -10/Materials | Discovered new exit (range 16) 1423 | -10/Materials | Core integrity fell below 50% 1658 | -10/Materials | Discovered new exit (range 13) 1763 | -10/Materials | Discovered new exit (range 6) 1779 | -10/Materials | Entered Subcaves 1877 | -10/Subcaves | Core integrity fell below 20% 2314 | -10/Subcaves | Discovered new exit (range 12) 2348 | -10/Subcaves | Destroyed by Autobeam Turret with Autobeam Last Messages --------------- 02111_ Acquired Scrap Shield. 02112_ Dropped Scrap Shield Fragment. 02114_ Acquired Lgt. Assault Rifle. 02117_ Dropped Lrg. Matter Pod. 02118_ Acquired Grenade Launcher. 02123_ Dropped Sub. Monowheel. 02124_ Acquired Lgt. Treads. 02126_ Acquired Ion Engine. 02189_ TS-F9V(R) destroyed. 02197_ Destroyed Scrap Shield. 02197_ M2-0SY(R) destroyed. 02202_ The unstable cave ceiling collapses. 02205_ Acquired 11 matter. 02208_ The unstable cave ceiling collapses. 02221_ Dropped Assault Rifle. 02222_ Acquired Battle Cannon. 02228_ The unstable cave ceiling collapses. 02301_ 99-GVM(z): "She is not going to be happy we haven't found any suitable candidates yet." 02314_ EXIT=FOUND Map ----- +----------------------------------------------------+ | ?????????????????????????????????????????????????? | | ?????????????????????????????????????????????????? | | ?????????????????????????????????????????????????? | | ?????????????????????????????????????????????????? | | ?????????????????????????????????????????????????? | | ?????????????????????????????????????????????????? | | ?????????????????????????????????????????????????? | | ?????????????????????????????????????????????????? | | ?????????????????????????????????????????????????? | | ?????????????????????????????????????????????????? | | ?????????????????????????????????????????????????? | | ?????????????????????????????????????????????????? | | ?????????????????????????????????????????????????? | | ?????????????????????????????????????????????????? | | ?????????????????????????????????????????????????? | | ?????????????????????????????????????????????????? | | ?????????????????????????????????????????????????? | | ?????????????????????????????????????????????????? | | ???????????????????????##????????????????????????? | | ??????????????????????## ##??##??????""??????????? | | ??????????????????????# ### #???? "??????????? | | ????????????? ????????# ### "??????????? | | ???????????? #?????? t""#?????????? | | ???????????? ????# % ??????????? | | ??????????????# ###||| *%& % ???????????????? | | ??????????????????# %% @ #????????????????????? | | ??????????????????## ] * #????????????????????? | | ??????????????????# # # ##???????????????????? | | ??????????????????#??##### % #???????????????????? | | ????????????????????????# %;###?????????????????? | | ????????????????????????## ##????????????????? | | ?????????????????????????## ##?###???????????? | | ??????????????????????????## %## ####????????? | | ??????????????????????????## ####?????? | | ?????????????????????????## ???? | | ?????????????????????????# # ????? | | ?????????????????????????# #??????????? | | ?????????????????????????#### ###??????????? | | ????????????????????????????## #?????###????? | | ?????????????????????????????## ####### ##???? | | ????????????????????????????#### # # ####? | | ???????????????????????????## ## ## | | ???????????????????????????# # | | ???????????????????????????# # # # | | ???????????????????????????## ####?# ## | | ????????????????????????????### ####??# ## | | ??????????????????????????????# ### #### | | ??????????????????????????????### ## | | ??????????????????????????????# # | | ??????????????????????????????# # # ### | +----------------------------------------------------+ Best States ------------- Heat Dissipation 35 Energy Generation 10 Energy Capacity 250 Matter Stores 300 Matter Capacity 300 Sight Range 16 Terrain Scan Density 10 Armor Coverage 800 Evasion (%) 44 Recoil Reduction 2 Item Schematics ----------------- Huge Storage Unit | -10/Materials | Hacked Med. Storage Unit | -10/Materials | Hacked Robot Schematics ------------------ None Fabricated ------------ Nothing Alien Tech Used ----------------- None Achievements -------------- None Challenges ------------ None Game ------ Seed LightningWeldingStreamer Manual? 0 Play Time 00:12:54 Cumulative 534.1 hours Start 2023.06.21 @ 23:19:17 End 2023.06.21 @ 23:31:40 Sessions 1 Manual Loads 0 Difficulty Rogue Special Mode None Game No. 377 Rogue 377 Adventurer 0 Explorer 0 Win Type - Total 17 Types 9/3/1/0/0/1/2/1/0 Lore% 77 Gallery% 89 Achievement% 79 Wizard Run 0 Options --------- ASCII 0 Keyboard 0 Movement Numpad Keybinds 0 Fullscreen 2 Font 24/Terminus Map View 76x50 Tactical HUD 1 Map Filters NONE Filters NONE Steam 1 RUN: 39e206c0-7d97-4ac8-9881-b4eb30875ae4